fUST/lending_fUST_20250302
["ID","MTS","AMOUNT","RATE_DAILY","PERIOD"]
[355040422,1740879065018,-500.0,0.00025479,2]
[355040423,1740879065027,-500.0,0.00025479,2]
[355040424,1740879065037,-500.0,0.00025479,2]
[355040425,1740879065047,-567.96,0.00025479,2]
[355040426,1740879065056,-500.0,0.00025479,2]
[355040427,1740879065066,-923.05,0.00025479,2]
[355040428,1740879065076,-500.0,0.00025479,2]
[355040429,1740879065086,-151.0,0.00025479,7]
[355040430,1740879065096,-500.0,0.00025479,2]
[355040431,1740879065106,-500.0,0.00025479,2]
[355040432,1740879065118,-500.0,0.00025479,2]
[355040433,1740879065127,-534.34,0.00025479,2]
[355040434,1740879065137,-1219.47,0.00025479,2]
[355040435,1740879065147,-162.667137,0.00025479,7]
[355040436,1740879065157,-162.667137,0.00025479,7]
[355040437,1740879065167,-500.0,0.00025479,2]
[355040438,1740879065176,-500.0,0.00025479,2]
[355040439,1740879065186,-692.23,0.00025479,2]
[355040440,1740879065196,-500.0,0.00025479,2]
[355040441,1740879065206,-500.0,0.00025479,2]
[355040442,1740879065215,-1123.88,0.00025479,2]
[355040443,1740879065225,-500.0,0.00025479,2]
[355040444,1740879065235,-500.0,0.00025479,2]
[355040445,1740879065244,-500.87,0.00025479,2]
[355040446,1740879065254,-500.0,0.00025479,2]
[355040447,1740879065264,-500.0,0.00025479,2]
[355040448,1740879065274,-500.0,0.00025479,2]
[355040449,1740879065284,-500.0,0.00025479,2]
[355040450,1740879065293,-500.0,0.00025479,2]
[355040451,1740879065303,-606.15,0.00025479,2]
[355040452,1740879065312,-976.64,0.00025479,2]
[355040453,1740879065322,-1480.65,0.00025479,2]
[355040454,1740879065345,-500.0,0.00025479,2]
[355040455,1740879065356,-500.0,0.00025479,2]
[355040456,1740879065367,-1035.01,0.00025479,2]
[355040457,1740879065377,-500.0,0.00025479,2]
[355040458,1740879065387,-797.6,0.00025479,2]
[355040459,1740879065397,-500.0,0.00025479,2]
[355040460,1740879065407,-500.0,0.00025479,2]
[355040461,1740879065417,-500.0,0.00025479,2]
[355040462,1740879065427,-151.0,0.00025479,7]
[355040463,1740879065436,-546.03,0.00025479,2]
[355040464,1740879065447,-500.0,0.00025479,2]
[355040465,1740879065456,-500.0,0.00025479,2]
[355040466,1740879065467,-500.0,0.00025479,2]
[355040467,1740879065476,-500.0,0.00025479,2]
[355040468,1740879065486,-500.0,0.00025479,2]
[355040469,1740879065496,-500.0,0.00025479,2]
[355040470,1740879065506,-500.0,0.00025479,2]
[355040471,1740879065517,-1108.97,0.00025479,2]
[355040472,1740879065526,-678.8,0.00025479,2]
[355040473,1740879065536,-500.0,0.00025479,2]
[355040474,1740879065546,-1456.12,0.00025479,2]
[355040475,1740879065556,-1412.95,0.00025479,2]
[355040476,1740879065566,-500.0,0.00025479,2]
[355040477,1740879065576,-790.75,0.00025479,2]
[355040478,1740879065587,-568.49,0.00025479,2]
[355040479,1740879065596,-500.0,0.00025479,2]
[355040480,1740879065606,-840.92,0.00025479,2]
[355040481,1740879065617,-500.0,0.00025479,2]
[355040482,1740879065626,-550.18,0.00025479,2]
[355040483,1740879065637,-151.0,0.00025479,7]
[355040484,1740879065647,-500.0,0.00025479,2]
[355040485,1740879065657,-151.0,0.00025479,7]
[355040486,1740879065667,-499.638185,0.00025479,7]
[355040487,1740879065676,-499.638185,0.00025479,7]
[355040488,1740879065686,-500.0,0.00025479,2]
[355040489,1740879065696,-500.0,0.00025479,2]
[355040490,1740879065706,-500.0,0.00025479,2]
[355040491,1740879065716,-632.5,0.00025479,2]
[355040492,1740879065726,-1237.3,0.00025479,2]
[355040493,1740879065736,-855.71,0.00025479,2]
[355040494,1740879065747,-500.0,0.00025479,2]
[355040495,1740879065760,-500.0,0.00025479,2]
[355040496,1740879065770,-500.0,0.00025479,2]
[355040497,1740879065779,-614.18,0.00025479,2]
[355040498,1740879065788,-572.77,0.00025479,2]
[355040499,1740879065799,-500.0,0.00025479,2]
[355040500,1740879065809,-1853.6,0.00025479,2]
[355040501,1740879065819,-500.0,0.00025479,2]
[355040502,1740879065830,-500.0,0.00025479,2]
[355040503,1740879065841,-500.0,0.00025479,2]
[355040504,1740879065851,-500.0,0.00025479,2]
[355040505,1740879065861,-500.0,0.00025479,2]
[355040506,1740879065871,-1973.28,0.00025479,2]
[355040507,1740879065882,-1740.77,0.00025479,2]
[355040508,1740879065891,-1229.28,0.00025479,2]
[355040509,1740879065901,-500.0,0.00025479,2]
[355040510,1740879065911,-500.0,0.00025479,2]
[355040511,1740879065921,-500.0,0.00025479,2]
[355040512,1740879065931,-500.0,0.00025479,2]
[355040513,1740879065941,-500.0,0.00025479,2]
[355040514,1740879065951,-1058.84,0.00025479,2]
[355040515,1740879065967,-500.0,0.00025479,2]
[355040516,1740879065977,-500.0,0.00025479,2]
[355040517,1740879065986,-500.0,0.00025479,2]
[355040518,1740879065997,-513.64183561,0.00025479,2]
[355040519,1740879066006,-500.0,0.00025479,2]
[355040520,1740879066016,-500.0,0.00025479,2]
[355040521,1740879066025,-1760.85,0.00025479,2]
[355040522,1740879066324,-500.0,0.00025479,2]
[355040523,1740879066335,-500.0,0.00025479,2]
[355040524,1740879066345,-763.8,0.00025479,2]
[355040525,1740879066355,-535.91,0.00025479,2]
[355040526,1740879066364,-500.0,0.00025479,2]
[355040527,1740879066374,-518.81,0.00025479,2]
[355040528,1740879066384,-500.0,0.00025479,2]
[355040529,1740879066394,-789.87,0.00025479,2]
[355040530,1740879066404,-1169.18,0.00025479,2]
[355040531,1740879066414,-823.54,0.00025479,2]
[355040532,1740879066424,-727.61,0.00025479,2]
[355040533,1740879066434,-500.0,0.00025479,2]
[355040534,1740879066444,-500.0,0.00025479,2]
[355040535,1740879066454,-500.0,0.00025479,2]
[355040536,1740879066464,-500.0,0.00025479,2]
[355040537,1740879066474,-500.0,0.00025479,2]
[355040538,1740879066484,-500.0,0.00025479,2]
[355040539,1740879066494,-500.0,0.00025479,2]
[355040540,1740879066504,-679.28,0.00025479,2]
[355040541,1740879066516,-162.635591,0.00025479,7]
[355040542,1740879066526,-162.635591,0.00025479,7]
[355040543,1740879066536,-1156.15,0.00025479,2]
[355040544,1740879066546,-500.0,0.00025479,2]
[355040545,1740879066556,-500.0,0.00025479,2]
[355040546,1740879066566,-500.0,0.00025479,2]
[355040547,1740879066576,-643.8,0.00025479,2]
[355040548,1740879066586,-608.93694024,0.00025479,2]
[355040549,1740879066596,-500.0,0.00025479,2]
[355040550,1740879066605,-500.0,0.00025479,2]
[355040551,1740879066614,-500.0,0.00025479,2]
[355040552,1740879066624,-500.0,0.00025479,2]
[355040553,1740879066634,-504.95603551,0.00025479,2]
[355040554,1740879066644,-500.0,0.00025479,2]
[355040555,1740879066654,-2965.91,0.00025479,2]
[355040556,1740879066663,-500.0,0.00025479,2]
[355040557,1740879066674,-500.0,0.00025479,2]
[355040558,1740879066683,-767.25,0.00025479,2]
[355040559,1740879066693,-585.61,0.00025479,2]
[355040560,1740879066703,-500.0,0.00025479,2]
[355040561,1740879066712,-151.0,0.00025479,7]
[355040562,1740879066722,-500.0,0.00025479,2]
[355040563,1740879066732,-500.0,0.00025479,2]
[355040564,1740879066743,-151.0,0.00025479,7]
[355040565,1740879066756,-500.0,0.00025479,2]
[355040566,1740879066767,-500.0,0.00025479,2]
[355040567,1740879066776,-1366.57,0.00025479,2]
[355040568,1740879066787,-500.0,0.00025479,2]
[355040569,1740879066796,-500.0,0.00025479,2]
[355040570,1740879066806,-2095.11,0.00025479,2]
[355040571,1740879066816,-500.0,0.00025479,2]
[355040572,1740879066827,-597.85,0.00025479,2]
[355040573,1740879066836,-500.0,0.00025479,2]
[355040574,1740879066846,-2187.03,0.00025479,2]
[355040575,1740879066856,-500.0,0.00025479,2]
[355040576,1740879066865,-500.0,0.00025479,2]
[355040577,1740879066875,-500.0,0.00025479,2]
[355040578,1740879066886,-500.0,0.00025479,2]
[355040579,1740879066895,-500.0,0.00025479,2]
[355040580,1740879066905,-500.0,0.00025479,2]
[355040581,1740879066915,-2600.88,0.00025479,2]
[355040582,1740879066924,-500.0,0.00025479,2]
[355040583,1740879066934,-151.0,0.00025479,7]
[355040584,1740879066943,-500.0,0.00025479,2]
[355040585,1740879066953,-500.0,0.00025479,2]
[355040586,1740879066963,-1378.883154,0.00025479,7]
[355040587,1740879066972,-500.0,0.00025479,2]
[355040588,1740879066982,-1469.09,0.00025479,2]
[355040589,1740879066991,-500.0,0.00025479,2]
[355040590,1740879067001,-500.0,0.00025479,2]
[355040591,1740879067011,-1378.883154,0.00025479,7]
[355040592,1740879067020,-500.0,0.00025479,2]
[355040593,1740879067030,-151.0,0.00025479,7]
[355040594,1740879067039,-1195.67,0.00025479,2]
[355040595,1740879067050,-500.0,0.00025479,2]
[355040596,1740879067060,-500.0,0.00025479,2]
[355040597,1740879067069,-500.0,0.00025479,2]
[355040598,1740879067079,-500.0,0.00025479,2]
[355040599,1740879067088,-500.0,0.00025479,2]
[355040600,1740879067098,-500.0,0.00025479,2]
[355040601,1740879067107,-500.0,0.00025479,2]
[355040602,1740879067117,-593.01578155,0.00025479,2]
[355040603,1740879067127,-508.18433206,0.00025479,2]
[355040604,1740879067136,-1083.175398,0.00025479,7]
[355040605,1740879067146,-500.0,0.00025479,2]
[355040606,1740879067155,-500.0,0.00025479,2]
[355040607,1740879067165,-500.0,0.00025479,2]
[355040608,1740879067174,-500.0,0.00025479,2]
[355040609,1740879067183,-151.0,0.00025479,7]
[355040610,1740879067193,-1083.175398,0.00025479,7]
[355040611,1740879067202,-546.27,0.00025479,2]
[355040612,1740879067211,-981.6,0.00025479,2]
[355040613,1740879067220,-500.0,0.00025479,2]
[355040614,1740879067230,-500.0,0.00025479,2]
[355040615,1740879067239,-500.0,0.00025479,2]
[355040616,1740879067249,-500.0,0.00025479,2]
[355040617,1740879067259,-1998.47,0.00025479,2]
[355040618,1740879067269,-500.0,0.00025479,2]
[355040619,1740879067279,-500.0,0.00025479,2]
[355040620,1740879067288,-500.0,0.00025479,2]
[355040621,1740879067298,-500.0,0.00025479,2]
[355040622,1740879067308,-1132.58,0.00025479,2]
[355040623,1740879067317,-1390.75,0.00025479,2]
[355040624,1740879067327,-500.0,0.00025479,2]
[355040625,1740879067337,-152.277099,0.00025479,7]
[355040626,1740879067346,-500.0,0.00025479,2]
[355040627,1740879067356,-750.61,0.00025479,2]
[355040628,1740879067365,-1225.65,0.00025479,2]
[355040629,1740879067375,-500.0,0.00025479,2]
[355040630,1740879067384,-740.505488,0.00025479,7]
[355040631,1740879067394,-500.0,0.00025479,2]
[355040632,1740879067403,-500.0,0.00025479,2]
[355040633,1740879067414,-500.0,0.00025479,2]
[355040634,1740879067423,-740.505488,0.00025479,7]
[355040635,1740879067432,-2942.81,0.00025479,2]
[355040636,1740879067442,-200.523826,0.00025479,7]
[355040637,1740879067451,-500.0,0.00025479,2]
[355040638,1740879067462,-200.523826,0.00025479,7]
[355040639,1740879067472,-151.0,0.00025479,7]
[355040640,1740879067482,-500.0,0.00025479,2]
[355040641,1740879067491,-687.27,0.00025479,2]
[355040642,1740879067501,-151.0,0.00025479,7]
[355040643,1740879067511,-546.92,0.00025479,2]
[355040644,1740879067521,-500.0,0.00025479,2]
[355040645,1740879067530,-151.0,0.00025479,7]
[355040646,1740879067540,-500.0,0.00025479,2]
[355040647,1740879067549,-508.06437309,0.00025479,2]
[355040648,1740879067559,-500.0,0.00025479,2]
[355040649,1740879067569,-6653.65,0.00025479,2]
[355040650,1740879067579,-151.0,0.00025479,7]
[355040651,1740879067588,-531.68,0.00025479,2]
[355040652,1740879067598,-500.0,0.00025479,2]
[355040653,1740879067607,-500.0,0.00025479,2]
[355040654,1740879067617,-500.0,0.00025479,2]
[355040655,1740879067627,-787.34,0.00025479,2]
[355040656,1740879067637,-515.39,0.00025479,2]
[355040657,1740879067646,-151.0,0.00025479,7]
[355040658,1740879067655,-500.0,0.00025479,2]
[355040659,1740879067665,-151.0,0.00025479,7]
[355040660,1740879067675,-798.9,0.00025479,2]
[355040661,1740879067684,-921.01,0.00025479,2]
[355040662,1740879067694,-1357.37,0.00025479,2]
[355040663,1740879067703,-505.23536334,0.00025479,2]
[355040664,1740879067713,-330.24502847,0.00025479,2]
[355040665,1740879067723,-1253.57,0.00025479,2]
[355040666,1740879067733,-1100.26,0.00025479,2]
[355040667,1740879067743,-500.0,0.00025479,2]
[355040668,1740879067756,-500.0,0.00025479,2]
[355040669,1740879067766,-500.0,0.00025479,2]
[355040670,1740879067775,-500.0,0.00025479,2]
[355040671,1740879067785,-241.204969,0.00025479,7]
[355040672,1740879067795,-151.0,0.00025479,7]
[355040673,1740879067805,-1064.91,0.00025479,2]
[355040674,1740879067815,-500.0,0.00025479,2]
[355040675,1740879067825,-241.204969,0.00025479,7]
[355040676,1740879067835,-1028.64,0.00025479,2]
[355040677,1740879067844,-500.0,0.00025479,2]
[355040678,1740879067854,-953.5,0.00025479,2]
[355040679,1740879067864,-151.0,0.00025479,7]
[355040680,1740879067873,-500.0,0.00025479,2]
[355040681,1740879067883,-500.0,0.00025479,2]
[355040682,1740879067892,-151.0,0.00025479,7]
[355040683,1740879067902,-500.0,0.00025479,2]
[355040684,1740879067911,-500.0,0.00025479,2]
[355040685,1740879067921,-500.0,0.00025479,2]
[355040686,1740879067931,-1357.74,0.00025479,2]
[355040687,1740879067940,-500.66117665,0.00025479,2]
[355040688,1740879067950,-2304.27,0.00025479,2]
[355040689,1740879067959,-500.0,0.00025479,2]
[355040690,1740879067969,-500.0,0.00025479,2]
[355040691,1740879067978,-913.09,0.00025479,2]
[355040692,1740879067988,-500.0,0.00025479,2]
[355040693,1740879067997,-616.8,0.00025479,2]
[355040694,1740879068007,-500.0,0.00025479,2]
[355040695,1740879068018,-500.0,0.00025479,2]
[355040696,1740879068027,-500.0,0.00025479,2]
[355040697,1740879068037,-530.27,0.00025479,2]
[355040698,1740879068046,-1322.93,0.00025479,2]
[355040699,1740879068056,-2037.26,0.00025479,2]
[355040700,1740879068066,-500.0,0.00025479,2]
[355040701,1740879068076,-500.0,0.00025479,2]
[355040702,1740879068085,-500.0,0.00025479,2]
[355040703,1740879068094,-228894.7,0.00025479,2]
[355040704,1740879068104,-500.0,0.00025479,2]
[355040705,1740879068113,-5273.75,0.00025479,2]
[355040706,1740879068123,-500.0,0.00025479,2]
[355040707,1740879068132,-3865.73,0.00025479,2]
[355040708,1740879068141,-774.46,0.00025479,2]
[355040709,1740879068151,-500.0,0.00025479,2]
[355040710,1740879068161,-1845.43,0.00025479,2]
[355040711,1740879068170,-500.0,0.00025479,2]
[355040712,1740879068180,-500.0,0.00025479,2]
[355040713,1740879068189,-2547.98,0.00025479,2]
[355040714,1740879068199,-508.43,0.00025479,2]
[355040715,1740879068209,-1042.11,0.00025479,2]
[355040716,1740879068219,-500.0,0.00025479,2]
[355040717,1740879068228,-4735.09,0.00025479,2]
[355040718,1740879068238,-887.32,0.00025479,2]
[355040719,1740879068247,-500.0,0.00025479,2]
[355040720,1740879068257,-500.0,0.00025479,2]
[355040721,1740879068271,-1654.79,0.00025479,2]
[355040722,1740879068281,-500.0,0.00025479,2]
[355040723,1740879068291,-571.36,0.00025479,2]
[355040724,1740879068300,-630.23988269,0.00025479,2]
[355040725,1740879068310,-2534.25,0.00025479,2]
[355040726,1740879068319,-500.0,0.00025479,2]
[355040727,1740879068329,-500.0,0.00025479,2]
[355040728,1740879068338,-757.87,0.00025479,2]
[355040729,1740879068348,-500.0,0.00025479,2]
[355040730,1740879068358,-500.0,0.00025479,2]
[355040731,1740879068368,-513.88348399,0.00025479,2]
[355040732,1740879068378,-500.0,0.00025479,2]
[355040733,1740879068387,-500.0,0.00025479,2]
[355040734,1740879068397,-746.63,0.00025479,2]
[355040735,1740879068406,-500.0,0.00025479,2]
[355040736,1740879068416,-2132.63,0.00025479,2]
[355040737,1740879068426,-5714.61,0.00025479,2]
[355040738,1740879068436,-685.05,0.00025479,2]
[355040739,1740879068446,-500.0,0.00025479,2]
[355040740,1740879068455,-303.67041697,0.00025479,2]
[355040741,1740879068465,-1619.9,0.00025479,2]
[355040742,1740879068475,-830.83,0.00025479,2]
[355040743,1740879068484,-12095.69,0.00025479,2]
[355040744,1740879068494,-681.53,0.00025479,2]
[355040745,1740879068503,-500.0,0.00025479,2]
[355040746,1740879068515,-500.0,0.00025479,2]
[355040747,1740879068528,-4178.4,0.00025479,2]
[355040748,1740879068538,-500.0,0.00025479,2]
[355040749,1740879068549,-1330.74,0.00025479,2]
[355040750,1740879068560,-500.0,0.00025479,2]
[355040751,1740879068570,-510.29,0.00025479,2]
[355040752,1740879068580,-500.0,0.00025479,2]
[355040753,1740879068590,-1275.17,0.00025479,2]
[355040754,1740879068599,-500.0,0.00025479,2]
[355040755,1740879068608,-2632.57,0.00025479,2]
[355040756,1740879068618,-500.0,0.00025479,2]
[355040757,1740879068627,-151.0,0.00025479,7]
[355040758,1740879068637,-500.0,0.00025479,2]
[355040759,1740879068646,-500.0,0.00025479,2]
[355040760,1740879068656,-3272.09,0.00025479,2]
[355040761,1740879068666,-500.0,0.00025479,2]
[355040762,1740879068675,-6089.99,0.00025479,2]
[355040763,1740879068684,-500.0,0.00025479,2]
[355040764,1740879068694,-896.16,0.00025479,2]
[355040765,1740879068704,-2422.9,0.00025479,2]
[355040766,1740879068713,-500.0,0.00025479,2]
[355040767,1740879068723,-500.0,0.00025479,2]
[355040768,1740879068732,-227.698802,0.00025479,7]
[355040769,1740879068742,-1792.97,0.00025479,2]
[355040770,1740879068756,-500.0,0.00025479,2]
[355040771,1740879068767,-500.0,0.00025479,2]
[355040772,1740879068776,-500.0,0.00025479,2]
[355040773,1740879068786,-500.0,0.00025479,2]
[355040774,1740879068796,-227.698802,0.00025479,7]
[355040775,1740879068806,-1799.99,0.00025479,2]
[355040776,1740879068815,-500.0,0.00025479,2]
[355040777,1740879068825,-664.3,0.00025479,2]
[355040778,1740879068835,-500.0,0.00025479,2]
[355040779,1740879068844,-19164.85,0.00025479,2]
[355040780,1740879068853,-500.0,0.00025479,2]
[355040781,1740879068863,-687.1,0.00025479,2]
[355040782,1740879068872,-500.0,0.00025479,2]
[355040783,1740879068882,-500.0,0.00025479,2]
[355040784,1740879068891,-14410.22,0.00025479,2]
[355040785,1740879068902,-1549.58243,0.00025479,7]
[355040786,1740879068912,-500.0,0.00025479,2]
[355040787,1740879068922,-500.0,0.00025479,2]
[355040788,1740879068932,-500.0,0.00025479,2]
[355040789,1740879068942,-1549.58243,0.00025479,7]
[355040790,1740879068951,-500.0,0.00025479,2]
[355040791,1740879068961,-1792.12,0.00025479,2]
[355040792,1740879068971,-517.12662447,0.00025479,2]
[355040793,1740879068981,-1461.2,0.00025479,2]
[355040794,1740879068991,-500.0,0.00025479,2]
[355040795,1740879069000,-500.0,0.00025479,2]
[355040796,1740879069010,-500.0,0.00025479,2]
[355040797,1740879069022,-1405.11,0.00025479,2]
[355040798,1740879069032,-8901.6,0.00025479,2]
[355040799,1740879069042,-1231.32,0.00025479,2]
[355040800,1740879069052,-733.47387,0.00025479,7]
[355040801,1740879069062,-500.0,0.00025479,2]
[355040802,1740879069073,-2321.88,0.00025479,2]
[355040803,1740879069082,-954.26,0.00025479,2]
[355040804,1740879069091,-500.0,0.00025479,2]
[355040805,1740879069100,-500.0,0.00025479,2]
[355040806,1740879069110,-733.47387,0.00025479,7]
[355040807,1740879069119,-500.0,0.00025479,2]
[355040808,1740879069129,-1016.36,0.00025479,2]
[355040809,1740879069139,-500.0,0.00025479,2]
[355040810,1740879069148,-500.0,0.00025479,2]
[355040811,1740879069157,-500.0,0.00025479,2]
[355040812,1740879069167,-500.0,0.00025479,2]
[355040813,1740879069176,-3999.53,0.00025479,2]
[355040814,1740879069185,-590.52,0.00025479,2]
[355040815,1740879069195,-5365.43,0.00025479,2]
[355040816,1740879069203,-666.73,0.00025479,2]
[355040817,1740879069213,-500.0,0.00025479,2]
[355040818,1740879069223,-151.0,0.00025479,7]
[355040819,1740879069232,-500.0,0.00025479,2]
[355040820,1740879069241,-247.390395,0.00025479,7]
[355040821,1740879069250,-929.8,0.00025479,2]
[355040822,1740879069260,-500.0,0.00025479,2]
[355040823,1740879069271,-500.0,0.00025479,2]
[355040824,1740879069280,-377.507149,0.00025479,7]
[355040825,1740879069289,-1435.64,0.00025479,5]
[355040826,1740879069299,-524.0,0.00025479,2]
[355040827,1740879069308,-500.0,0.00025479,2]
[355040828,1740879069317,-377.507149,0.00025479,7]
[355040829,1740879069327,-2215.83,0.00025479,2]
[355040830,1740879069336,-500.0,0.00025479,2]
[355040831,1740879069348,-1787.09,0.00025479,2]
[355040832,1740879069359,-545.59,0.00025479,2]
[355040833,1740879069371,-1882.552513,0.00025479,7]
[355040834,1740879069386,-8008.49,0.00025479,2]
[355040835,1740879069396,-151.0,0.00025479,7]
[355040836,1740879069407,-500.0,0.00025479,2]
[355040837,1740879069416,-1047.58,0.00025479,2]
[355040838,1740879069425,-354.614926,0.00025479,7]
[355040839,1740879069435,-500.0,0.00025479,2]
[355040840,1740879069444,-152.943537,0.00025479,7]
[355040841,1740879069454,-500.0,0.00025479,2]
[355040842,1740879069463,-672.95,0.00025479,2]
[355040843,1740879069473,-354.614926,0.00025479,7]
[355040844,1740879069483,-1419.66,0.00025479,2]
[355040845,1740879069494,-500.0,0.00025479,2]
[355040846,1740879069503,-1882.552513,0.00025479,7]
[355040847,1740879069515,-1183.92,0.00025479,2]
[355040848,1740879069525,-500.0,0.00025479,2]
[355040849,1740879069535,-505.32427382,0.00025479,2]
[355040850,1740879069545,-553.62,0.00025479,2]
[355040851,1740879069555,-927.13,0.00025479,2]
[355040852,1740879069565,-151.0,0.00025479,7]
[355040853,1740879069575,-1688.46,0.00025479,2]
[355040854,1740879069584,-500.0,0.00025479,2]
[355040855,1740879069594,-500.0,0.00025479,2]
[355040856,1740879069604,-1713.59,0.00025479,2]
[355040857,1740879069780,-1383.14,0.00025479,2]
[355040858,1740879069791,-1030.020155,0.00025479,7]
[355040859,1740879069802,-500.0,0.00025479,2]
[355040860,1740879069812,-500.0,0.00025479,2]
[355040861,1740879069822,-1030.020155,0.00025479,7]
[355040862,1740879069834,-686.9,0.00025479,2]
[355040863,1740879069845,-915.47,0.00025479,2]
[355040864,1740879069855,-470.05968827,0.00025479,2]
[355040865,1740879069865,-1978.09,0.00025479,2]
[355040866,1740879069878,-500.0,0.00025479,2]
[355040867,1740879069888,-3966.01,0.00025479,2]
[355040868,1740879069899,-1321.02,0.00025479,2]
[355040869,1740879069909,-1012.54,0.00025479,2]
[355040870,1740879069918,-940.66,0.00025479,2]
[355040871,1740879069928,-151.0,0.00025479,7]
[355040872,1740879069938,-1879.68,0.00025479,2]
[355040873,1740879069947,-3778.48,0.00025479,2]
[355040874,1740879069956,-1315.43,0.00025479,2]
[355040875,1740879069966,-500.0,0.00025479,2]
[355040876,1740879069975,-500.0,0.00025479,2]
[355040877,1740879069985,-1000.0,0.00025479,2]
[355040878,1740879069995,-500.0,0.00025479,2]
[355040879,1740879070005,-500.0,0.00025479,2]
[355040880,1740879070018,-500.0,0.00025479,2]
[355040881,1740879070027,-521.13,0.00025479,2]
[355040882,1740879070037,-500.0,0.00025479,2]
[355040883,1740879070046,-7346.2,0.00025479,2]
[355040884,1740879070056,-500.0,0.00025479,2]
[355040885,1740879070065,-654.9,0.00025479,2]
[355040886,1740879070075,-2816.3,0.00025479,2]
[355040887,1740879070084,-500.0,0.00025479,2]
[355040888,1740879070105,-500.0,0.00025479,2]
[355040889,1740879070116,-160.871652,0.00025479,7]
[355040890,1740879070127,-500.0,0.00025479,2]
[355040891,1740879070138,-500.0,0.00025479,2]
[355040892,1740879070148,-346.449302,0.00025479,7]
[355040893,1740879070159,-16797.07,0.00025479,2]
[355040894,1740879070170,-500.0,0.00025479,2]
[355040895,1740879070180,-722.54,0.00025479,2]
[355040896,1740879070190,-346.449302,0.00025479,7]
[355040897,1740879070202,-377.71538,0.00025479,7]
[355040898,1740879070212,-500.35337952,0.00025479,2]
[355040899,1740879070223,-500.0,0.00025479,2]
[355040900,1740879070234,-377.71538,0.00025479,7]
[355040901,1740879070244,-500.0,0.00025479,2]
[355040902,1740879070255,-330.767499,0.00025479,7]
[355040903,1740879070267,-2221.84,0.00025479,2]
[355040904,1740879070278,-500.0,0.00025479,2]
[355040905,1740879070287,-1851.45,0.00025479,2]
[355040906,1740879070297,-500.0,0.00025479,2]
[355040907,1740879070308,-330.767499,0.00025479,7]
[355040908,1740879070318,-18973.49,0.00025479,2]
[355040909,1740879070329,-500.0,0.00025479,2]
[355040910,1740879070339,-500.0,0.00025479,2]
[355040911,1740879070350,-583.22,0.00025479,2]
[355040912,1740879070360,-201.63844117,0.00025479,2]
[355040913,1740879070370,-500.0,0.00025479,2]
[355040914,1740879070380,-500.0,0.00025479,2]
[355040915,1740879070390,-500.0,0.00025479,2]
[355040916,1740879070401,-500.0,0.00025479,2]
[355040917,1740879070411,-500.0,0.00025479,2]
[355040918,1740879070421,-500.0,0.00025479,2]
[355040919,1740879070431,-2023.15,0.00025479,2]
[355040920,1740879070440,-546.98,0.00025479,2]
[355040921,1740879070451,-696.3,0.00025479,2]